fUST/lending_fUST_20250923
["ID","MTS","AMOUNT","RATE_DAILY","PERIOD"]
[387191818,1758629445495,-580.72466751,0.00019452,2]
[387191819,1758629445504,-480.0,0.00019452,2]
[387191820,1758629445513,-151.0,0.00019452,2]
[387191821,1758629445522,-193.687834,0.00019452,2]
[387191822,1758629445532,-480.0,0.00019452,2]
[387191823,1758629445541,-480.0,0.00019452,2]
[387191824,1758629445550,-480.0,0.00019452,2]
[387191825,1758629445560,-480.0,0.00019452,2]
[387191826,1758629445571,-484.56360521,0.00019452,2]
[387191827,1758629445583,-480.0,0.00019452,2]
[387191828,1758629445592,-767.96,0.00019452,2]
[387191829,1758629445602,-480.0,0.00019452,2]
[387191830,1758629445612,-480.0,0.00019452,2]
[387191831,1758629445622,-480.0,0.00019452,2]
[387191832,1758629445631,-480.0,0.00019452,2]
[387191833,1758629445640,-480.0,0.00019452,2]
[387191834,1758629445649,-480.0,0.00019452,2]
[387191835,1758629445659,-480.0,0.00019452,2]
[387191836,1758629445669,-480.0,0.00019452,2]
[387191837,1758629445678,-480.0,0.00019452,2]
[387191838,1758629445687,-509.45290327,0.00019452,2]
[387191839,1758629445696,-480.0,0.00019452,2]
[387191840,1758629445705,-480.0,0.00019452,2]
[387191841,1758629445715,-480.0,0.00019452,2]
[387191842,1758629445726,-480.0,0.00019452,2]
[387191843,1758629445736,-485.56066459,0.00019452,2]
[387191844,1758629445746,-491.63639452,0.00019452,2]
[387191845,1758629445755,-724.52,0.00019452,2]
[387191846,1758629445765,-480.0,0.00019452,2]
[387191847,1758629445774,-480.0,0.00019452,2]
[387191848,1758629445784,-256.6906184,0.00019452,2]
[387191849,1758629445793,-480.0,0.00019452,2]
[387191850,1758629445802,-492.37516756,0.00019452,2]
[387191851,1758629445811,-399.24089421,0.00019452,2]
[387191852,1758629445820,-480.0,0.00019452,2]
[387191853,1758629445829,-2317.23,0.00019452,2]
[387191854,1758629445838,-482.44558676,0.00019452,2]
[387191855,1758629445848,-480.0,0.00019452,2]
[387191856,1758629445857,-480.0,0.00019452,2]
[387191857,1758629445866,-480.0,0.00019452,2]
[387191858,1758629445876,-480.0,0.00019452,2]
[387191859,1758629445885,-480.0,0.00019452,2]
[387191860,1758629445894,-480.0,0.00019452,2]
[387191861,1758629445904,-480.0,0.00019452,2]
[387191862,1758629445914,-845.41,0.00019452,2]
[387191863,1758629445925,-512.65291392,0.00019452,2]
[387191864,1758629445935,-480.0,0.00019452,2]
[387191865,1758629445945,-480.0,0.00019452,2]
[387191866,1758629445955,-480.0,0.00019452,2]
[387191867,1758629445964,-480.0,0.00019452,2]
[387191868,1758629445976,-480.0,0.00019452,2]
[387191869,1758629445987,-1705.88,0.00019452,2]
[387191870,1758629445997,-480.0,0.00019452,2]
[387191871,1758629446007,-480.0,0.00019452,2]
[387191872,1758629446017,-480.0,0.00019452,2]
[387191873,1758629446026,-1229.73,0.00019452,2]
[387191874,1758629446035,-480.0,0.00019452,2]
[387191875,1758629446045,-480.0,0.00019452,2]
[387191876,1758629446054,-480.0,0.00019452,2]
[387191877,1758629446064,-576.04229852,0.00019452,2]
[387191878,1758629446073,-1061.05,0.00019452,2]
[387191879,1758629446082,-480.0,0.00019452,2]
[387191880,1758629446092,-480.0,0.00019452,2]
[387191881,1758629446101,-480.0,0.00019452,2]
[387191882,1758629446110,-480.0,0.00019452,2]
[387191883,1758629446120,-1096.37,0.00019452,2]
[387191884,1758629446130,-480.0,0.00019452,2]
[387191885,1758629446140,-480.0,0.00019452,2]
[387191886,1758629446150,-480.0,0.00019452,2]
[387191887,1758629446161,-490.69273148,0.00019452,2]
[387191888,1758629446173,-490.11382698,0.00019452,2]
[387191889,1758629446187,-1203.78,0.00019452,2]
[387191890,1758629446198,-2825.94,0.00019452,2]
[387191891,1758629446207,-487.43823675,0.00019452,2]
[387191892,1758629446216,-500.18,0.00019452,2]
[387191893,1758629446225,-480.0,0.00019452,2]
[387191894,1758629446234,-618.8620619,0.00019452,2]
[387191895,1758629446243,-480.0,0.00019452,2]
[387191897,1758629446253,-480.0,0.00019452,2]
[387191899,1758629446262,-480.0,0.00019452,2]
[387191901,1758629446271,-480.0,0.00019452,2]
[387191902,1758629446280,-480.0,0.00019452,2]
[387191904,1758629446289,-480.0,0.00019452,2]
[387191906,1758629446298,-2217.95,0.00019452,2]
[387191908,1758629446308,-10588.68,0.00019452,2]
[387191910,1758629446317,-502.31,0.00019452,2]
[387191912,1758629446326,-480.0,0.00019452,2]
[387191914,1758629446335,-499.7611885,0.00019452,2]
[387191916,1758629446345,-480.0,0.00019452,2]
[387191918,1758629446354,-814.88,0.00019452,2]
[387191920,1758629446363,-480.0,0.00019452,2]
[387191922,1758629446372,-1422.96,0.00019452,2]
[387191924,1758629446382,-480.0,0.00019452,2]
[387191926,1758629446391,-780.52,0.00019452,2]
[387191928,1758629446400,-480.0,0.00019452,2]
[387191931,1758629446413,-480.0,0.00019452,2]
[387191933,1758629446422,-480.0,0.00019452,2]
[387191934,1758629446431,-490.69613752,0.00019452,2]
[387191937,1758629446441,-480.0,0.00019452,2]
[387191939,1758629446451,-480.0,0.00019452,2]
[387191941,1758629446460,-505.09,0.00019452,2]
[387191943,1758629446470,-480.0,0.00019452,2]
[387191945,1758629446479,-480.0,0.00019452,2]
[387191947,1758629446490,-480.0,0.00019452,2]
[387191949,1758629446498,-6115.59,0.00019452,2]
[387191950,1758629446507,-480.0,0.00019452,2]
[387191951,1758629446516,-480.0,0.00019452,2]
[387191952,1758629446525,-480.0,0.00019452,2]
[387191953,1758629446535,-480.0,0.00019452,2]
[387191954,1758629446543,-480.0,0.00019452,2]
[387191955,1758629446552,-480.0,0.00019452,2]
[387191956,1758629446562,-480.0,0.00019452,2]
[387191957,1758629446572,-480.0,0.00019452,2]
[387191958,1758629446582,-151.0,0.00019452,2]
[387191959,1758629446591,-480.0,0.00019452,2]
[387191960,1758629446600,-711.05,0.00019452,2]
[387191961,1758629446608,-1061.74,0.00019452,2]
[387191962,1758629446618,-753.5,0.00019452,2]
[387191963,1758629446627,-480.0,0.00019452,2]
[387191964,1758629446636,-480.0,0.00019452,2]
[387191965,1758629446645,-1100.38,0.00019452,2]
[387191966,1758629446654,-480.0,0.00019452,2]
[387191967,1758629446663,-480.0,0.00019452,2]
[387191968,1758629446672,-480.0,0.00019452,2]
[387191969,1758629446681,-830.68,0.00019452,2]
[387191970,1758629446691,-480.0,0.00019452,2]
[387191971,1758629446700,-480.0,0.00019452,2]
[387191972,1758629446709,-480.0,0.00019452,2]
[387191973,1758629446718,-480.0,0.00019452,2]
[387191974,1758629446727,-480.0,0.00019452,2]
[387191975,1758629446736,-489.04531924,0.00019452,2]
[387191976,1758629446745,-205.321966,0.00019452,2]
[387191977,1758629446754,-205.321966,0.00019452,2]
[387191978,1758629446763,-480.0,0.00019452,2]
[387191979,1758629446772,-480.0,0.00019452,2]
[387191980,1758629446781,-205.321966,0.00019452,2]
[387191981,1758629446790,-480.0,0.00019452,2]
[387191982,1758629446799,-2464.81,0.00019452,2]
[387191983,1758629446809,-487.95730914,0.00019452,2]
[387191984,1758629446882,-480.0,0.00019452,2]
[387191985,1758629446899,-189.52968541,0.00019452,2]
[387191986,1758629446908,-480.0,0.00019452,2]
[387191987,1758629446917,-540.5,0.00019452,2]
[387191988,1758629446926,-493.19007737,0.00019452,2]
[387191989,1758629446935,-205.32197286,0.00019452,2]
[387191990,1758629446944,-480.0,0.00019452,2]
[387191991,1758629446954,-480.0,0.00019452,2]
[387191992,1758629446963,-844.65,0.00019452,2]
[387191993,1758629446972,-480.0,0.00019452,2]
[387191994,1758629446981,-488.70049803,0.00019452,2]
[387191995,1758629446990,-480.0,0.00019452,2]
[387191996,1758629447000,-745.7,0.00019452,2]
[387191997,1758629447009,-495.5,0.00019452,2]
[387191998,1758629447018,-761.17,0.00019452,2]
[387191999,1758629447027,-483.87183048,0.00019452,2]
[387192000,1758629447036,-480.0,0.00019452,2]
[387192001,1758629447045,-483.09178873,0.00019452,2]
[387192002,1758629447054,-508.57706631,0.00019452,2]
[387192003,1758629447063,-480.0,0.00019452,2]
[387192004,1758629447073,-486.82094555,0.00019452,2]
[387192006,1758629447083,-480.0,0.00019452,2]
[387192008,1758629447092,-480.0,0.00019452,2]
[387192009,1758629447102,-480.0,0.00019452,2]
[387192010,1758629447112,-487.98,0.00019452,2]
[387192011,1758629447122,-1309.5,0.00019452,2]
[387192012,1758629447131,-480.0,0.00019452,2]
[387192013,1758629447141,-951.61,0.00019452,2]
[387192014,1758629447151,-480.0,0.00019452,2]
[387192015,1758629447161,-777.42,0.00019452,2]
[387192016,1758629447174,-303.44258913,0.00019452,2]
[387192017,1758629447184,-198.87681251,0.00019452,2]
[387192018,1758629447193,-283.60505113,0.00019452,2]
[387192019,1758629447203,-986.73,0.00019452,2]
[387192020,1758629447214,-480.0,0.00019452,2]
[387192021,1758629447224,-480.0,0.00019452,2]
[387192022,1758629447234,-480.0,0.00019452,2]
[387192023,1758629447244,-480.0,0.00019452,2]
[387192024,1758629447255,-563.0,0.0001946,2]
[387192025,1758629447266,-345.0568819,0.00019487,2]
[387192026,1758629447276,-563.0,0.00019492,2]
[387192027,1758629447287,-175.0,0.00019498,2]
[387192028,1758629447297,-563.0,0.00019544,2]
[387192029,1758629447308,-329.62685659,0.00019625,2]
[387192030,1758629447318,-909.06393858,0.00019639,2]
[387192031,1758629447328,-175.0,0.00019643,2]
[387192032,1758629447339,-345.0568819,0.00019693,2]
[387192033,1758629447348,-545.0,0.0001971,2]
[387192034,1758629447358,-563.0,0.00019713,2]
[387192035,1758629447367,-1142.93027729,0.0001972,2]
[387192036,1758629447378,-836.68098752,0.00019721,2]
[387192037,1758629447388,-504.13971878,0.00019721,2]
[387192038,1758629447399,-1000.0,0.00019721,2]
[387192039,1758629447409,-329.51161124,0.00019721,2]
[387192040,1758629447419,-1000.0,0.00019721,2]
[387192041,1758629447428,-1000.0,0.00019721,2]
[387192042,1758629447438,-500.0,0.00019721,2]
[387192043,1758629447447,-501.44002865,0.00019721,2]
[387192044,1758629447457,-500.0,0.00019721,2]
[387192045,1758629447466,-500.89216518,0.00019721,2]
[387192046,1758629447476,-1006.0676098,0.00019721,2]
[387192047,1758629447485,-1000.0,0.00019721,2]
[387192048,1758629447494,-500.0,0.00019721,2]
[387192049,1758629447503,-503.70918573,0.00019721,2]
[387192050,1758629447512,-500.0,0.00019721,2]
[387192051,1758629447521,-1000.0,0.00019721,2]
[387192052,1758629447531,-500.0,0.00019721,2]
[387192053,1758629447541,-1000.0,0.00019721,2]
[387192054,1758629447556,-1000.0,0.00019721,2]
[387192055,1758629447565,-500.0,0.00019721,2]
[387192056,1758629447575,-500.0,0.00019725,2]
[387192057,1758629447584,-500.0,0.00019726,2]
[387192058,1758629447593,-503.27745998,0.00019726,2]
[387192059,1758629447602,-480.0,0.00019726,2]
[387192060,1758629447611,-480.0,0.00019726,2]
[387192061,1758629447621,-480.0,0.00019726,2]
[387192062,1758629447631,-480.0,0.00019726,2]
[387192063,1758629447640,-480.0,0.00019726,2]
[387192064,1758629447650,-480.0,0.00019726,2]
[387192065,1758629447660,-599.79985161,0.00019726,2]
[387192066,1758629447669,-480.0,0.00019726,2]
[387192067,1758629447679,-573.34543065,0.00019726,2]
[387192068,1758629447688,-480.0,0.00019726,2]
[387192069,1758629447698,-485.24898232,0.00019726,2]
[387192070,1758629447707,-480.0,0.00019726,2]
[387192071,1758629447716,-480.0,0.00019726,2]
[387192072,1758629447726,-480.0,0.00019726,2]
[387192073,1758629447735,-480.0,0.00019726,2]
[387192074,1758629447744,-480.0,0.00019726,2]
[387192075,1758629447753,-480.0,0.00019726,2]
[387192076,1758629447762,-480.0,0.00019726,2]
[387192077,1758629447771,-480.0,0.00019726,2]
[387192078,1758629447780,-480.0,0.00019726,2]
[387192079,1758629447790,-480.0,0.00019726,2]
[387192080,1758629447799,-480.0,0.00019726,2]
[387192081,1758629447808,-767.96,0.00019726,2]
[387192082,1758629447817,-505.96665422,0.00019726,2]
[387192083,1758629447826,-480.0,0.00019726,2]
[387192084,1758629447835,-480.0,0.00019726,2]
[387192085,1758629447844,-480.0,0.00019726,2]
[387192086,1758629447853,-480.0,0.00019726,2]
[387192087,1758629447862,-480.0,0.00019726,2]
[387192088,1758629447872,-480.0,0.00019726,2]
[387192089,1758629447881,-490.40236565,0.00019726,2]
[387192090,1758629447890,-467.14929958,0.00019726,2]
[387192091,1758629447899,-491.67401849,0.00019726,2]
[387192092,1758629447908,-532.56399018,0.00019726,2]
[387192093,1758629447918,-480.0,0.00019726,2]
[387192094,1758629447927,-724.52,0.00019726,2]
[387192095,1758629447937,-480.0,0.00019726,2]
[387192096,1758629447946,-480.0,0.00019726,2]
[387192097,1758629447956,-480.0,0.00019726,2]
[387192098,1758629447965,-488.57735303,0.00019726,2]
[387192099,1758629447975,-2317.23,0.00019726,2]
[387192100,1758629447984,-480.0,0.00019726,2]
[387192101,1758629447993,-491.33608497,0.00019726,2]
[387192102,1758629448003,-480.0,0.00019726,2]
[387192103,1758629448012,-480.0,0.00019726,2]
[387192104,1758629448022,-480.0,0.00019726,2]
[387192105,1758629448032,-487.03702914,0.00019726,2]
[387192106,1758629448043,-480.0,0.00019726,2]
[387192107,1758629448053,-845.41,0.00019726,2]
[387192108,1758629448063,-485.5880643,0.00019726,2]
[387192109,1758629448072,-480.0,0.00019726,2]
[387192110,1758629448082,-504.67106033,0.00019726,2]
[387192111,1758629448091,-480.0,0.00019726,2]
[387192112,1758629448101,-480.0,0.00019726,2]
[387192113,1758629448110,-1705.88,0.00019726,2]
[387192114,1758629448120,-211.17692652,0.00019726,2]
[387192115,1758629448129,-480.0,0.00019726,2]
[387192116,1758629448138,-480.0,0.00019726,2]
[387192117,1758629448147,-1229.73,0.00019726,2]
[387192118,1758629448157,-486.43456724,0.00019726,2]
[387192119,1758629448169,-480.0,0.00019726,2]
[387192120,1758629448182,-480.0,0.00019726,2]
[387192121,1758629448192,-1061.05,0.00019726,2]
[387192122,1758629448204,-480.0,0.00019726,2]
[387192123,1758629448213,-480.0,0.00019726,2]
[387192124,1758629448222,-480.0,0.00019726,2]
[387192125,1758629448232,-480.0,0.00019726,2]
[387192126,1758629448241,-1096.37,0.00019726,2]
[387192127,1758629448251,-267.36330729,0.00019726,2]
[387192128,1758629448261,-480.0,0.00019726,2]
[387192129,1758629448270,-515.46469153,0.00019726,2]
[387192130,1758629448280,-1203.78,0.00019726,2]
[387192131,1758629448289,-2825.94,0.00019726,2]
[387192132,1758629448299,-500.18,0.00019726,2]
[387192133,1758629448308,-480.0,0.00019726,2]
[387192134,1758629448318,-480.0,0.00019726,2]
[387192135,1758629448327,-480.0,0.00019726,2]
[387192136,1758629448336,-480.0,0.00019726,2]
[387192137,1758629448346,-480.0,0.00019726,2]
[387192138,1758629448356,-480.0,0.00019726,2]
[387192139,1758629448366,-480.0,0.00019726,2]
[387192140,1758629448376,-2217.95,0.00019726,2]
[387192141,1758629448386,-10588.68,0.00019726,2]
[387192142,1758629448395,-480.0,0.00019726,2]
[387192143,1758629448405,-502.31,0.00019726,2]
[387192144,1758629448415,-480.0,0.00019726,2]
[387192145,1758629448493,-303.71532283,0.00019726,2]
[387192146,1758629448511,-814.88,0.00019726,2]
[387192147,1758629448521,-1422.96,0.00019726,2]
[387192148,1758629448531,-480.0,0.00019726,2]
[387192149,1758629448540,-780.52,0.00019726,2]
[387192150,1758629448550,-480.0,0.00019726,2]
[387192151,1758629448560,-480.0,0.00019726,2]
[387192152,1758629448570,-480.0,0.00019726,2]
[387192153,1758629448580,-480.0,0.00019726,2]
[387192154,1758629448590,-480.0,0.00019726,2]
[387192155,1758629448599,-505.09,0.00019726,2]
[387192156,1758629448610,-480.0,0.00019726,2]
[387192157,1758629448619,-480.0,0.00019726,2]
[387192158,1758629448629,-480.0,0.00019726,2]
[387192159,1758629448639,-6115.59,0.00019726,2]
[387192160,1758629448648,-480.0,0.00019726,2]
[387192161,1758629448658,-480.0,0.00019726,2]
[387192162,1758629448667,-321.4430261,0.00019726,2]
[387192163,1758629448676,-492.69313248,0.00019726,2]
[387192164,1758629448685,-480.0,0.00019726,2]
[387192165,1758629448697,-480.0,0.00019726,2]
[387192166,1758629448707,-480.0,0.00019726,2]
[387192167,1758629448717,-480.0,0.00019726,2]
[387192168,1758629448726,-480.0,0.00019726,2]
[387192169,1758629448736,-711.05,0.00019726,2]
[387192170,1758629448745,-1061.74,0.00019726,2]
[387192171,1758629448755,-753.5,0.00019726,2]
[387192172,1758629448764,-480.0,0.00019726,2]
[387192173,1758629448774,-480.0,0.00019726,2]
[387192174,1758629448784,-1100.38,0.00019726,2]
[387192175,1758629448793,-480.0,0.00019726,2]
[387192176,1758629448803,-480.0,0.00019726,2]
[387192177,1758629448813,-480.0,0.00019726,2]
[387192178,1758629448822,-830.68,0.00019726,2]
[387192179,1758629448832,-480.0,0.00019726,2]
[387192180,1758629448842,-480.0,0.00019726,2]
[387192181,1758629448852,-480.0,0.00019726,2]
[387192182,1758629448862,-480.0,0.00019726,2]
[387192183,1758629448872,-480.0,0.00019726,2]
[387192184,1758629448882,-480.0,0.00019726,2]
[387192185,1758629448892,-480.0,0.00019726,2]
[387192186,1758629448903,-480.0,0.00019726,2]
[387192187,1758629448913,-2464.81,0.00019726,2]
[387192188,1758629448922,-480.0,0.00019726,2]
[387192189,1758629448932,-480.0,0.00019726,2]
[387192190,1758629448941,-540.5,0.00019726,2]
[387192191,1758629448952,-480.0,0.00019726,2]
[387192192,1758629448962,-480.0,0.00019726,2]
[387192193,1758629448971,-844.65,0.00019726,2]
[387192194,1758629448980,-480.0,0.00019726,2]
[387192195,1758629448990,-480.0,0.00019726,2]
[387192196,1758629449000,-745.7,0.00019726,2]
[387192197,1758629449010,-495.5,0.00019726,2]
[387192198,1758629449020,-761.17,0.00019726,2]
[387192199,1758629449030,-287.43382968,0.00019726,2]
[387192200,1758629449039,-480.0,0.00019726,2]
[387192201,1758629449049,-480.0,0.00019726,2]
[387192202,1758629449059,-480.0,0.00019726,2]
[387192203,1758629449070,-512.57596493,0.00019726,2]
[387192204,1758629449079,-487.98,0.00019726,2]
[387192205,1758629449089,-1309.5,0.00019726,2]
[387192206,1758629449099,-480.0,0.00019726,2]
[387192207,1758629449108,-951.61,0.00019726,2]
[387192208,1758629449118,-480.0,0.00019726,2]
[387192209,1758629449128,-777.42,0.00019726,2]
[387192210,1758629449137,-986.73,0.00019726,2]
[387192211,1758629449147,-480.0,0.00019726,2]
[387192212,1758629449158,-480.0,0.00019726,2]
[387192213,1758629449167,-480.0,0.00019726,2]
[387192214,1758629449182,-480.0,0.00019726,2]
[387192215,1758629449192,-663.9702285,0.0001977,2]
[387192216,1758629449203,-295.60856397,0.00019778,2]
[387192217,1758629449213,-175.0,0.00019802,2]
[387192218,1758629449223,-800.0,0.00019803,2]
[387192219,1758629449233,-175.0,0.0001983,2]
[387192220,1758629449243,-800.0,0.00019881,2]
[387192221,1758629449253,-345.0568819,0.000199,2]
[387192222,1758629449263,-4950.65611186,0.000199,2]
[387192223,1758629449272,-800.0,0.00019919,2]
[387192224,1758629449282,-800.0,0.00019923,2]
[387192225,1758629449291,-200.0,0.0001993,2]
[387192226,1758629449300,-545.0,0.00019933,2]
[387192227,1758629449309,-800.0,0.0001994,2]
[387192228,1758629449319,-563.0,0.00019954,2]
[387192229,1758629449329,-800.0,0.00019962,2]
[387192230,1758629449338,-500.0,0.00019973,2]
[387192231,1758629449348,-500.44188204,0.00019973,2]
[387192232,1758629449357,-500.0,0.00019973,2]
[387192233,1758629449368,-500.0,0.00019973,2]
[387192234,1758629449378,-503.96367499,0.00019973,2]
[387192235,1758629449388,-1866.064539,0.0001998,5]
[387192236,1758629449398,-500.0,0.00019999,2]
[387192237,1758629449408,-500.0,0.00019999,2]
[387192238,1758629449419,-500.0,0.0002,2]
[387192239,1758629449428,-8410.12781032,0.0002,2]
[387192240,1758629449438,-23000.0,0.0002,2]
[387192241,1758629449447,-2724.77584725,0.0002,2]
[387192242,1758629449457,-160.0,0.0002,3]
[387192243,1758629449466,-500.0,0.0002,2]
[387192244,1758629449476,-2585.54827038,0.0002,2]
[387192245,1758629449486,-480.0,0.0002,2]
[387192246,1758629449496,-480.0,0.0002,2]
[387192247,1758629449506,-480.0,0.0002,2]
[387192248,1758629449516,-480.0,0.0002,2]
[387192249,1758629449526,-480.0,0.0002,2]
[387192250,1758629449536,-480.0,0.0002,2]
[387192251,1758629449545,-490.94197555,0.0002,2]
[387192252,1758629449555,-480.0,0.0002,2]
[387192253,1758629449564,-480.0,0.0002,2]
[387192254,1758629449574,-480.0,0.0002,2]
[387192255,1758629449584,-480.0,0.0002,2]
[387192256,1758629449593,-480.0,0.0002,2]
[387192257,1758629449603,-480.0,0.0002,2]
[387192258,1758629449612,-480.0,0.0002,2]
[387192259,1758629449622,-480.0,0.0002,2]
[387192260,1758629449632,-480.0,0.0002,2]
[387192261,1758629449641,-480.0,0.0002,2]
[387192262,1758629449651,-480.0,0.0002,2]
[387192263,1758629449660,-480.0,0.0002,2]
[387192264,1758629449670,-767.96,0.0002,2]
[387192265,1758629449679,-480.0,0.0002,2]
[387192266,1758629449690,-480.0,0.0002,2]
[387192267,1758629449700,-480.0,0.0002,2]
[387192268,1758629449709,-480.0,0.0002,2]
[387192269,1758629449718,-1000.0,0.0002,5]
[387192270,1758629449727,-480.0,0.0002,2]
[387192271,1758629449736,-480.0,0.0002,2]
[387192272,1758629449745,-480.0,0.0002,2]
[387192273,1758629449755,-724.52,0.0002,2]
[387192274,1758629449764,-480.0,0.0002,2]
[387192275,1758629449774,-359.36029261,0.0002,2]
[387192276,1758629449783,-480.0,0.0002,2]
[387192277,1758629449792,-2317.23,0.0002,2]
[387192278,1758629449802,-480.0,0.0002,2]
[387192279,1758629449811,-480.0,0.0002,2]
[387192280,1758629449821,-480.0,0.0002,2]
[387192281,1758629449830,-480.4595479,0.0002,2]
[387192282,1758629449840,-480.0,0.0002,2]
[387192283,1758629449849,-845.41,0.0002,2]
[387192284,1758629449859,-250.0,0.0002,10]
[387192285,1758629449868,-480.0,0.0002,2]
[387192286,1758629449877,-480.0,0.0002,2]
[387192287,1758629449886,-486.09146418,0.0002,2]
[387192288,1758629449896,-1705.88,0.0002,2]
[387192289,1758629449905,-502.44220694,0.0002,2]
[387192290,1758629449915,-480.0,0.0002,2]
[387192291,1758629449924,-1229.73,0.0002,2]
[387192292,1758629450003,-480.0,0.0002,2]
[387192293,1758629450013,-480.0,0.0002,2]
[387192294,1758629450022,-1061.05,0.0002,2]
[387192295,1758629450031,-480.0,0.0002,2]
[387192296,1758629450041,-490.64576399,0.0002,2]
[387192297,1758629450050,-480.0,0.0002,2]
[387192298,1758629450060,-1096.37,0.0002,2]
[387192299,1758629450069,-480.0,0.0002,2]
[387192300,1758629450078,-480.0,0.0002,2]
[387192301,1758629450088,-1203.78,0.0002,2]
[387192302,1758629450098,-2825.94,0.0002,2]
[387192303,1758629450107,-500.18,0.0002,2]
[387192304,1758629450116,-480.0,0.0002,2]
[387192305,1758629450125,-480.0,0.0002,2]
[387192306,1758629450135,-480.0,0.0002,2]
[387192307,1758629450144,-480.0,0.0002,2]
[387192308,1758629450154,-480.0,0.0002,2]
[387192309,1758629450163,-480.0,0.0002,2]
[387192310,1758629450175,-480.0,0.0002,2]
[387192311,1758629450184,-2217.95,0.0002,2]
[387192312,1758629450193,-10588.68,0.0002,2]
[387192313,1758629450203,-480.0,0.0002,2]
[387192314,1758629450212,-502.31,0.0002,2]
[387192315,1758629450221,-480.0,0.0002,2]
[387192316,1758629450231,-814.88,0.0002,2]
[387192317,1758629450240,-1422.96,0.0002,2]
[387192318,1758629450249,-480.0,0.0002,2]
[387192319,1758629450258,-780.52,0.0002,2]
[387192320,1758629450268,-454.49815062,0.0002,2]
[387192321,1758629450277,-480.0,0.0002,2]
[387192322,1758629450286,-480.0,0.0002,2]
[387192323,1758629450295,-480.0,0.0002,2]
[387192324,1758629450305,-480.0,0.0002,2]
[387192325,1758629450314,-505.09,0.0002,2]
[387192326,1758629450323,-480.0,0.0002,2]
[387192327,1758629450333,-166.463017,0.0002,2]
[387192328,1758629450342,-480.0,0.0002,2]
[387192329,1758629450351,-6115.59,0.0002,2]
[387192330,1758629450361,-480.0,0.0002,2]
[387192331,1758629450371,-480.0,0.0002,2]
[387192332,1758629450380,-480.0,0.0002,2]
[387192333,1758629450390,-434.09250594,0.0002,2]
[387192334,1758629450399,-480.0,0.0002,2]
[387192335,1758629450408,-480.0,0.0002,2]
[387192336,1758629450418,-711.05,0.0002,2]
[387192337,1758629450427,-1061.74,0.0002,2]
[387192338,1758629450437,-753.5,0.0002,2]
[387192339,1758629450446,-480.0,0.0002,2]
[387192340,1758629450455,-1100.38,0.0002,2]
[387192341,1758629450464,-480.0,0.0002,2]
[387192342,1758629450473,-480.0,0.0002,2]
[387192343,1758629450481,-480.0,0.0002,2]
[387192344,1758629450490,-830.68,0.0002,2]
[387192345,1758629450498,-480.0,0.0002,2]
[387192346,1758629450507,-480.0,0.0002,2]